Cogmind - Beta 17 *** ADVENTURER MODE // 2026.07.07 @ 09:13:29 Player: Jefffff Result: Destroyed by S-10 Pest with Light Assault Rifle Performance ------------- Evolutions (0) 0 Regions Visited (4) 800 Robots Destroyed (30) 150 Value Destroyed (815) 815 Prototype IDs (4) 80 Alien Tech Used (0) 0 Bonus (0) 0 TOTAL SCORE: 1845 Bonus ------- None Cogmind --------- Core Integrity 0/250 Matter 288/300 Energy 235/250 System Corruption 0% Temperature Cool (4) Movement Walking (120) Location -9/Mines Parts ------- > --- POWER (1) -------- Ion Engine > --- PROPULSION (2) --- Carbon-fiber Leg Carbon-fiber Leg > --- UTILITY (2) ------ Improved Heat Sink Medium Storage Unit > --- WEAPON (2) ------- Beamcaster Advanced Assault Cannon > --- INVENTORY (10) --- Light Ion Engine Scrap Suit Improved Heat Sink Huge Storage Unit Power Shielding Weapon Shielding Shock Absorption System Particle Gun Hammer Peak State ------------ > --- POWER ------------ Ion Engine > --- PROPULSION ------- Carbon-fiber Leg Carbon-fiber Leg > --- UTILITY ---------- Improved Heat Sink Medium Storage Unit > --- WEAPON ----------- Beamcaster Advanced Assault Cannon > --- INVENTORY -------- Light Ion Engine Scrap Suit Improved Heat Sink Huge Storage Unit Power Shielding Weapon Shielding Shock Absorption System Particle Gun Hammer [Rating: 22] Favorites ----------- Power Ion Engine Engine Ion Engine Propulsion Aluminum Leg Leg Aluminum Leg Utility Medium Storage Unit Device Heat Sink Storage Medium Storage Unit Weapon Particle Gun Energy Gun Particle Gun Ballistic Gun Light Assault Rifle Ballistic Cannon Advanced Assault Cannon Special Weapon Mining Laser Build | -11 -10 -10 -10 -9 ------- Run | Yrd Mat Min Exi Min Slots Evolved . | . . . . . Power . | . . . . . Propulsion . | . . . . . Utility . | . . . . . Weapon . | . . . . . Parts Attached 33 | 6 8 7 . 12 Power 6 | 1 1 2 . 2 Engine 6 | 1 1 2 . 2 Core . | . . . . . Reactor . | . . . . . Propulsion 11 | 2 1 3 . 5 Treads . | . . . . . Leg 11 | 2 1 3 . 5 Wheel . | . . . . . Hover . | . . . . . Flight . | . . . . . Utility 5 | 1 3 . . 1 Device 2 | . 1 . . 1 Storage 3 | 1 2 . . . Processor . | . . . . . Hackware . | . . . . . Protection . | . . . . . Artifact . | . . . . . Weapon 11 | 2 3 2 . 4 Energy Gun 5 | . 1 1 . 3 Energy Cannon . | . . . . . Ballistic Gun 4 | 2 2 . . . Ballistic Cannon 1 | . . . . 1 Launcher . | . . . . . Special Weapon 1 | . . 1 . . Impact Weapon . | . . . . . Slashing Weapon . | . . . . . Piercing Weapon . | . . . . . Special Melee Weapon . | . . . . . Unidentified Prototypes . | . . . . . Parts Lost 4 | . . 4 . . Power 1 | . . 1 . . Propulsion 1 | . . 1 . . Utility . | . . . . . Weapon 2 | . . 2 . . Highest Loss Streak 2 | . . 2 . . To Critical Strikes . | . . . . . Average Backups 8 | 1 6 9 10 9 Power 1 | . 1 1 2 1 Propulsion . | . . . . . Utility 4 | . 2 4 5 5 Weapon 2 | . 2 2 3 2 Tool/Special . | . . . . . Unused Backups 11 | . 1 . . 10 Power 1 | . . . . 1 Propulsion . | . . . . . Utility 7 | . . . . 7 Weapon 3 | . 1 . . 2 Tool/Special . | . . . . . Average Slot Usage (%) 97 | . 94 97 100 100 Engine 13 | . 14 13 14 14 Leg 27 | . 28 26 28 28 Device 12 | . 9 14 14 14 Storage 14 | . 14 14 14 14 Energy Gun 10 | . 11 6 14 14 Ballistic Gun 14 | . 16 20 14 5 Ballistic Cannon 1 | . . . . 8 Peak Build Rating 22 | 6 8 9 9 22 Average Rating 9 | 4 7 7 9 13 On Entrance 6 | . 6 8 9 9 Avg Prop Armor Cover (%) . | . . . . . Naked Turns . | . . . . . Heaviest Build 27 | 12 21 21 18 27 Greatest Support 30 | 20 20 20 20 30 Greatest Overweight (x) 1 | . 1 1 . 1 Average Overweight (x) . | . . . . . Largest Inventory Capacity 25 | 8 25 10 10 10 Average Capacity 9 | 6 9 10 10 10 Most Carried 10 | 2 10 10 10 10 Average Carried 8 | 1 6 9 10 9 Final Capacity 10 | 8 10 10 10 10 Final Carried 10 | 2 10 10 10 10 Class Distribution -------------------- 66% | Scavenger-Mutant 33% | Mutant Dominant Class ---------------- Mutant | -10/Materials Scavenger-Mutant | -10/Mines Scavenger-Mutant | -10/Exiles Scavenger-Mutant | -9/Mines Resources | -11 -10 -10 -10 -9 ----------- Run | Yrd Mat Min Exi Min Matter Collected 911 | 49 362 279 . 221 Remotely . | . . . . . Salvage Created 978 | . 311 445 . 222 Parts 44 | . 18 17 . 9 Haulers Intercepted 1 | . 1 . . . Recyclers Shooed 1 | . 1 . . . Parts Field Recycled . | . . . . . Retrieved Matter . | . . . . . Parts Self-Destructed . | . . . . . Prevented . | . . . . . Parts Restored . | . . . . . Kills | -11 -10 -10 -10 -9 ------- Run | Yrd Mat Min Exi Min Combat Hostiles Destroyed 26 | . 6 11 . 9 Guns 22 | . 6 11 . 5 Cannons 4 | . . . . 4 Classes Destroyed 7 | . 5 2 . . Worker 2 | . 1 1 . . Hauler 1 | . 1 . . . Recycler 1 | . . 1 . . Watcher 2 | . 2 . . . Swarmer 6 | . 2 2 . 2 Grunt 18 | . 4 7 . 7 Assembled 2 | . . 2 . . Best Kill Streak 5 | . 5 3 . 3 Combat Bots Only 3 | . 2 3 . 3 Max Kills in Single Turn 1 | . 1 1 . 1 Gunslinging . | . . . . . Exploded . | . . . . . Melee . | . . . . . Uniques/NPCs Destroyed . | . . . . . Combat | -11 -10 -10 -10 -9 -------- Run | Yrd Mat Min Exi Min Hostile Shots Fired 176 | . 50 79 . 47 Missed 51 | . 13 21 . 17 Hits 125 | . 37 58 . 30 Projectile 125 | . 37 58 . 30 Critical Strikes 3 | . 1 1 . 1 Damage Taken 1222 | . 354 598 . 270 Core 250 | . 110 79 . 61 Absorbed by Shields . | . . . . . Ignored by Resistances 359 | . 104 175 . 80 Regen/Repaired (Parts) 39 | . 39 . . . Core Remaining (%) 100 | 100 . . . . Volleys Fired 123 | . 40 60 . 23 Largest 2 | . 2 2 . 2 Hottest 120 | . 85 120 . 115 Shots Fired 226 | . 80 100 . 46 Gun 205 | . 80 93 . 32 Cannon 14 | . . . . 14 Launcher . | . . . . . Special 7 | . . 7 . . Kinetic 157 | . 58 76 . 23 Thermal 69 | . 22 24 . 23 Explosive . | . . . . . Electromagnetic . | . . . . . Robot Hit Streak 17 | . 17 10 . 13 Robot Miss Streak 5 | . 5 3 . 1 Penetration Max . | . . . . . Secondary Targets 7 | . 2 3 . 2 Max Gunslinging Chain 1 | . 1 1 . 1 Shots Hit Robots 164 | . 61 69 . 34 Core Hits 68 | . 26 27 . 15 Critical Kills 2 | . 1 1 . . Critical Parts Destroyed 1 | . . 1 . . Critical Strikes 6 | . 2 2 . 2 Burn 1 | . 1 . . . Destroy 3 | . 1 2 . . Blast 2 | . . . . 2 Melee Attacks . | . . . . . Impact . | . . . . . Slashing . | . . . . . Piercing . | . . . . . Sneak Attacks . | . . . . . Combat Hostiles . | . . . . . Follow-up Attacks . | . . . . . Damage Inflicted 2060 | . 623 782 . 655 Guns 1691 | . 623 782 . 286 Cannons 369 | . . . . 369 Explosions . | . . . . . Melee . | . . . . . Ramming . | . . . . . Kinetic 1465 | . 432 597 . 436 Thermal 595 | . 191 185 . 219 Explosive . | . . . . . Electromagnetic . | . . . . . Impact . | . . . . . Slashing . | . . . . . Piercing . | . . . . . Highest Corruption . | . . . . . Average Corruption . | . . . . . Corruption Purged . | . . . . . Corruption Blocked . | . . . . . Overload Shots . | . . . . . Overflow Damage . | . . . . . Projectiles . | . . . . . Explosions . | . . . . . Melee . | . . . . . Knockbacks 4 | . . . . 4 Impact . | . . . . . Kinetic 3 | . . . . 3 Secondary 1 | . . . . 1 Self-Inflicted Damage . | . . . . . Shots . | . . . . . Rammed . | . . . . . Targets Rammed . | . . . . . Kicked . | . . . . . Crushed . | . . . . . Highest Temperature 141 | . 96 78 . 141 Average Temperature 35 | . 27 31 . 44 Received Heat Transfer 705 | . 138 387 . 180 Siege Activations . | . . . . . Martial Activations . | . . . . . Shielding Activations . | . . . . . Robots Disrupted . | . . . . . Combat Hostiles . | . . . . . Robots Corrupted . | . . . . . Combat Hostiles . | . . . . . Parts Fried . | . . . . . Impact Corruptions . | . . . . . Robots Melted . | . . . . . Combat Hostiles . | . . . . . Parts Melted 1 | . 1 . . . Heat Transferred 1517 | . 555 444 . 518 Parts Sabotaged . | . . . . . Parts Stolen . | . . . . . Parts Stripped . | . . . . . Power Chain Reactions . | . . . . . Alert | -11 -10 -10 -10 -9 ------- Run | Yrd Mat Min Exi Min Maximum Alert Level . | . . . . . Low Security (%) 100 | 100 100 100 . 100 Level 1 . | . . . . . Level 2 . | . . . . . Level 3 . | . . . . . Level 4 . | . . . . . Level 5 . | . . . . . High Security . | . . . . . Max Security . | . . . . . Peak Influence 99 | . 99 95 . 70 Initial . | . . . . . Average 17 | . 19 15 . 19 Influence Increases 653 | . 184 254 . 215 Destroy 0b10 Robot/C 480 | . 120 180 . 180 Destroy 0b10 Robot/NC 30 | . 20 10 . . Destroy Leader 96 | . 26 40 . 30 Successful Hack 22 | . 18 . . 4 Disable Machine 9 | . . 9 . . Destroy Structure 1 | . . . . 1 Lose Combat Pursuer 15 | . . 15 . . Influence Decreases 613 | . 184 179 75 175 Entered New Map 75 | . . . 75 . Time Decay 515 | . 181 159 . 175 Lost Part 20 | . . 20 . . Purge Threat 3 | . 3 . . . Squads Dispatched 2 | . 1 . . 1 Investigation 2 | . 1 . . 1 Extermination . | . . . . . Reinforcement . | . . . . . Assault . | . . . . . Garrison . | . . . . . Intercept . | . . . . . Searches Triggered . | . . . . . Construction Impeded . | . . . . . Haulers Reinforced . | . . . . . Active Scanning Responses . | . . . . . Cargo Convoy Interrupts . | . . . . . Stealth | -11 -10 -10 -10 -9 --------- Run | Yrd Mat Min Exi Min Distress Signals 1 | . 1 . . . Communications Jammed . | . . . . . Distress Signals . | . . . . . Times Spotted 36 | . 13 12 . 11 Peak Tracking Total 4 | . 4 3 . 3 Tactical Retreats 2 | . . 2 . . Traps | -11 -10 -10 -10 -9 ------- Run | Yrd Mat Min Exi Min Traps Triggered 3 | . 3 . . . Indirectly . | . . . . . Trap Hack Attempts . | . . . . . Triggered . | . . . . . Disarmed . | . . . . . Reprogrammed . | . . . . . Reused . | . . . . . Traps Extracted . | . . . . . Installed . | . . . . . Triggered . | . . . . . Machines | -11 -10 -10 -10 -9 ---------- Run | Yrd Mat Min Exi Min Machines Disabled 1 | . . 1 . . Max in Single Turn 1 | . . 1 . . Machines Repaired . | . . . . . Machines Dismantled . | . . . . . Machines Sabotaged . | . . . . . Overloaded Fab Kills . | . . . . . Hacking | -11 -10 -10 -10 -9 --------- Run | Yrd Mat Min Exi Min Machines Accessed 12 | . 6 . 4 2 Terminals 6 | . 5 . . 1 Fabricators . | . . . . . Repair Stations 1 | . 1 . . . Recycling Units . | . . . . . Scanalyzers . | . . . . . Garrison Access . | . . . . . Total Hacks 71 | . 19 . 49 3 Successful 65 | . 14 . 49 2 Failed 6 | . 5 . . 1 Catastrophic 2 | . 1 . . 1 Database Lockouts . | . . . . . Manual 11 | . 9 . . 2 Terminals 17 | . 15 . . 2 Fabricators . | . . . . . Repair Stations 4 | . 4 . . . Recycling Units . | . . . . . Scanalyzers . | . . . . . Garrison Access . | . . . . . Terminal Hacks 56 | . 6 . 49 1 Record 49 | . . . 49 . Robot Analysis 1 | . 1 . . . Prototype ID Bank 3 | . 3 . . . Open Door 1 | . . . . 1 Terminal Index 1 | . 1 . . . Unreport Threat 1 | . 1 . . . Fabricator Hacks . | . . . . . Repair Station Hacks 4 | . 4 . . . Scan Component 2 | . 2 . . . Repair 2 | . 2 . . . Recycling Unit Hacks . | . . . . . Scanalyzer . | . . . . . Garrison Access Hacks . | . . . . . Unauthorized Hacks 5 | . 4 . . 1 Terminals 5 | . 4 . . 1 Botnet 5 | . 4 . . 1 Fabricators . | . . . . . Repair Stations . | . . . . . Recycling Units . | . . . . . Scanalyzers . | . . . . . Garrison Access . | . . . . . Data Cores Recovered . | . . . . . Used . | . . . . . Hacking Detections 6 | . 5 . . 1 Full Trace Events . | . . . . . Feedback Events . | . . . . . Feedback Blocked . | . . . . . Robot Schematics Acquired . | . . . . . Robots Built . | . . . . . Authchips . | . . . . . Time . | . . . . . Total Robot Build Rating . | . . . . . Part Schematics Acquired . | . . . . . Parts Built . | . . . . . Authchips . | . . . . . Time . | . . . . . Total Part Build Rating . | . . . . . Part Studies Acquired . | . . . . . Parts Repaired 2 | . 2 . . . Time 58 | . 58 . . . Parts Recycled . | . . . . . Recycled Matter . | . . . . . Retrieved Matter . | . . . . . Retrieved Components . | . . . . . Parts Scanalyzed . | . . . . . Part Schematics Acquired . | . . . . . Parts Damaged . | . . . . . Bothacking | -11 -10 -10 -10 -9 ------------ Run | Yrd Mat Min Exi Min Used RIF Installer . | . . . . . Robots Hacked . | . . . . . Non-combat . | . . . . . Combat . | . . . . . Robot Hacks Applied . | . . . . . Relay Couplers Released . | . . . . . Fabnet Peak Effective % . | . . . . . Robots Rewired . | . . . . . Allies Hacked . | . . . . . Hacks Repelled . | . . . . . Allies | -11 -10 -10 -10 -9 -------- Run | Yrd Mat Min Exi Min Total Allies 1 | . . 1 . . Largest Group 1 | . . 1 . . Highest-Rated Group 31 | . . 31 . . Highest-Rated Ally 31 | . . 31 . . Total Orders . | . . . . . Ally Attacks . | . . . . . Total Damage . | . . . . . Kills . | . . . . . Allies Corrupted . | . . . . . Allies Melted . | . . . . . Intel | -11 -10 -10 -10 -9 ------- Run | Yrd Mat Min Exi Min Active Infowar (turns) . | . . . . . Robot Analysis Total 1 | . 1 . . . Derelict Logs Recovered 1 | . . 1 . . Drone Launches . | . . . . . Drone Recoveries . | . . . . . Exploration | -11 -10 -10 -10 -9 ------------- Run | Yrd Mat Min Exi Min Turns Passed 2514 | 43 816 736 330 589 Spaces Moved 1509 | 29 456 406 276 342 Core 3 | 3 . . . . Treads . | . . . . . Legs 1506 | 26 456 406 276 342 Wheels . | . . . . . Hover . | . . . . . Flight . | . . . . . Fastest Speed 50 | 50 120 120 120 120 Average Speed 131 | 112 131 129 120 144 Slowest Speed 190 | 120 190 190 120 190 Overloaded Moves . | . . . . . Propulsion Burnouts . | . . . . . Robots Hopped . | . . . . . Potential Cave-ins . | . . . . . Cave-ins Triggered . | . . . . . Exploration Rate (%) 56 | 3 81 74 68 56 Regions Visited 4 Branch Regions 3 Pre-discovered Areas 1 | . . . 1 . Known Exits Taken . | . . . . . Unknown Exits Taken 4 | 1 1 1 1 . Scrap Searched 2 | . . 1 . 1 Spaces Dug . | . . . . . Terrain Destroyed 1 | . . . . 1 Melee . | . . . . . Projectile 1 | . . . . 1 AOE . | . . . . . Terrain Rammed . | . . . . . Walls Destroyed . | . . . . . Machines Disabled . | . . . . . Actions | -11 -10 -10 -10 -9 --------- Run | Yrd Mat Min Exi Min Total 1819 | 37 597 508 275 402 Wait 101 | . 74 23 . 4 Move 1505 | 28 455 405 275 342 Hop . | . . . . . Pick Up 24 | 3 12 5 . 4 Fast Attach 8 | 5 1 2 . . Attach 5 | 1 1 3 . . Detach . | . . . . . Swap 29 | . 9 7 . 13 Drop 24 | . 5 3 . 16 Fire 123 | . 40 60 . 23 Melee . | . . . . . Ram . | . . . . . Kick . | . . . . . Crush . | . . . . . Escape Stasis . | . . . . . Rewire . | . . . . . Trap . | . . . . . Miscellaneous . | . . . . . Route ------- -11/Scrapyard -10/Materials (discovered 2 exits: [*Mat] / [*Min]) -10/Mines (discovered 3 exits: [*Mat] / *Exi / [*Sub]) -10/Exiles -9/Mines History --------- Turn | Location | Event 13 | -11/Scrapyard | Discovered new exit (range 16) 44 | -11/Scrapyard | Entered Materials 238 | -10/Materials | Discovered new exit (range 7) 339 | -10/Materials | Discovered new exit (range 5) 650 | -10/Materials | Build established: Mutant 715 | -10/Materials | Repaired Particle Gun 746 | -10/Materials | Repaired Heat Sink 860 | -10/Materials | Entered Mines 870 | -10/Mines | Discovered new exit (range 9) 1084 | -10/Mines | Core integrity fell below 50% 1267 | -10/Mines | Discovered new exit (range 14) 1302 | -10/Mines | Build established: Scavenger-Mutant 1351 | -10/Mines | Received a Mining Laser from a helpful Derelict 1384 | -10/Mines | Excavation squad dispatched 1384 | -10/Mines | A large section of the Mines collapsed 1591 | -10/Mines | Deemed a non-threat by the Exiles lab entrance 1591 | -10/Mines | Discovered new exit (range 5) 1596 | -10/Mines | Entered Exiles 1626 | -10/Exiles | Met 8R-AWN 1648 | -10/Exiles | Met EX-HEX 1692 | -10/Exiles | Met EX-DEC 1712 | -10/Exiles | Learned location of Zion (-6) 1744 | -10/Exiles | Met EX-BIN 1916 | -10/Exiles | Discovered new exit (range 10) 1926 | -10/Exiles | Entered Mines 1958 | -9/Mines | Found a Scrap Suit stashed away for nefarious purposes 1964 | -9/Mines | Found Scrap Suit 2016 | -9/Mines | Core integrity fell below 20% 2155 | -9/Mines | Met a Derelict shopkeep closing up shop 2515 | -9/Mines | Destroyed by S-10 Pest with Light Assault Rifle Last Messages --------------- 02299_ G-34 Mercenary knocked back. 02302_ G-34 Mercenary Ion Engine blasted off. 02304_ G-34 Mercenary destroyed. 02313_ G-34 Mercenary suffers critical hit (Blast). 02313_ Destroyed Aluminum Leg. 02313_ G-34 Mercenary destroyed. 02331_ Dropped Aluminum Leg. 02445_ Dropped Carbon-fiber Leg. 02447_ Dropped Aluminum Leg. 02449_ Dropped Imp. Heat Sink. 02449_ Acquired Imp. Heat Sink. 02451_ Acquired 62 matter. 02456_ Dropped Particle Gun. 02490_ Searching scrap... 02490_ Found Disposable Heat Sink. 02490_ Found Propulsion Shielding. 02490_ Found 41 Matter. 02491_ Acquired 32 matter. 02510_ S-10 Pest destroyed. Map ----- +----------------------------------------------------+ | ?????????????????????????????????????????????????? | | ?????????????????????????????????????????????????? | | ?????????????????????????????????????????????????? | | ?????????????????????????????????????????????????? | | ?????????????????????????????????????????????????? | | ?????????????????????????????????????????????????? | | ?????????????????????????????????????????????????? | | ?????????????????????????????????????????????????? | | ?????????????????????????????????????????????????? | | ?????????????????????????????????????????????????? | | ?????????????????????????????????????????????????? | | ?????????????????????????????????????????????????? | | ?????????????????????????????????????????????????? | | ?????????????????????????????????????????????????? | | ?????????????????????????????????????????????????? | | ?????????????????????????????????????????????????? | | ?????????????????????????????????????????????????? | | ?????????????????????????????????????????????????? | | ?????????????????????????????????????????????????? | | ?????????????????????????????????????????????????? | | ??????????????????????????????????????????????? | | ????????????????????????????????????????????# ## | | ????????????????????????????????????????????# ???? | | ?????????? ?????????????????????????????????? | | ?????????? s ############ #??????????#??? | | ?????????? % %%* @ #????????? #??? | | ?????????? =### #########?????##### ?### | | ?????????? ????????# #??############ | | ????????????????????????# #??# %! | | ???????????????????????## ##?# ! #??? | | ??????????????????????## ### ###### #???# | | ??????????????????????# ## #?????# #???# | | ??????????????????????# ######?# #???# | | ??????????????????????## ### ##### | | ???????????????????????## #### ## = ! | | ????????????????????????#### #### # [ = | | ???????????????????????????## ### ### | | ?###########????????????????# ###### ##?# #?? | | # #????????????????# #???######??# #?# | | # """ """ #????????????????# #??????????# #?# | | # """ """ ####?????????????# #???????### #?# | | # """ """ ####?????????????# #??????## ### | | # """ """ ]#?????????????## ??????# | | # ## #??????????????### ?????# | | # T# #?????????????????# #????# | | ############# #?????????????????? ????##### | | ????????????# #######????????????# #??????## | | ????????????# #?????????????## #?????## | | ????????????####### #???????????????###????## | | ???????????######## #??????????????????????# # | +----------------------------------------------------+ Best States ------------- Heat Dissipation 39 Energy Generation 10 Energy Capacity 250 Matter Stores 300 Matter Capacity 300 Sight Range 16 Terrain Scan Density 10 Resistance: KI 20 Resistance: TH 20 Resistance: EX 20 Resistance: EM 20 Resistance: I 20 Resistance: S 20 Resistance: P 20 Evasion (%) 55 Offensive Hacking 10 Item Schematics ----------------- None Robot Schematics ------------------ None Fabricated ------------ Nothing Repaired ---------- Particle Gun | 64% | -10/Materials Heat Sink | 60% | -10/Materials Studied --------- None Alien Tech Used ----------------- None Achievements -------------- None Challenges ------------ None Game ------ Seed MiningWaveScythe Manual? 0 Play Time 00:17:28 Cumulative 286.2 hours Start 2026.07.07 @ 08:59:18 End 2026.07.07 @ 09:13:29 Sessions 1 Manual Loads 0 Difficulty Adventurer Special Mode None Game No. 337 Rogue 0 Adventurer 337 Explorer 0 Win Type - Total 0 Types 0/0/0/0/0/0/0/0/0/0 Lore% 75 Gallery% 59 Achievement% 41 Wizard Run 0 Options --------- Layout 2 ASCII 0 Keyboard 0 Movement Mouse Keybinds 0 Fullscreen 2 Font 48/Smallcaps Map View 50x44 Zoom Use 0% Tactical HUD 1 Map Filters NONE Filters NONE Steam 1 RUN: 21bce197-a791-436e-b8a7-4d73e8fa2d44